bitfinex/quotes_BTCUSD_20240828
["timestamp","ask_amount","ask_price","bid_price","bid_amount"]
[1724872463533,0.02588251,59475.0,59474.0,2.50985878]
[1724872466651,0.02588251,59475.0,59474.0,2.84613978]
[1724872467983,0.02588251,59475.0,59474.0,2.51075858]
[1724872469837,0.02588251,59475.0,59474.0,1.76089658]
[1724872470557,0.02588251,59475.0,59474.0,1.42461558]
[1724872470798,0.60689451,59475.0,59474.0,1.25647558]
[1724872471028,0.94316951,59475.0,59474.0,1.25647558]
[1724872471269,1.00606951,59475.0,59474.0,1.25647558]
[1724872471500,1.00606951,59475.0,59474.0,1.2451998]
[1724872471717,1.00606951,59475.0,59474.0,1.25643685]
[1724872472830,1.00606951,59475.0,59474.0,0.01213685]
[1724872473149,1.00606951,59475.0,59474.0,0.0008998]
[1724872474029,1.34234451,59475.0,59474.0,0.0008998]
[1724872474266,1.00606951,59475.0,59474.0,0.0008998]
[1724872475146,1.34234451,59475.0,59474.0,0.0008998]
[1724872475571,1.51786195,59475.0,59474.0,0.0008998]
[1724872475796,1.44234451,59475.0,59474.0,0.0008998]
[1724872476003,1.54303443,59475.0,59474.0,0.0008998]
[1724872476423,1.18159289,59475.0,59474.0,0.0008998]
[1724872476634,1.10606951,59475.0,59474.0,0.0008998]
[1724872476853,1.15641528,59475.0,59474.0,0.0008998]
[1724872477063,1.10606951,59475.0,59474.0,0.0008998]
[1724872477267,1.15641528,59475.0,59474.0,0.0008998]
[1724872477490,1.18159289,59475.0,59474.0,0.0008998]
[1724872477706,1.10606951,59475.0,59474.0,0.0008998]
[1724872477920,1.15642856,59475.0,59474.0,0.0008998]
[1724872478130,1.10606951,59475.0,59474.0,0.0008998]
[1724872478373,1.44234451,59475.0,59474.0,0.0048998]
[1724872478577,1.51788342,59475.0,59474.0,0.0048998]
[1724872479010,1.18160842,59475.0,59474.0,0.0008998]
[1724872479219,1.811717,59475.0,59474.0,0.0008998]
[1724872479439,1.811717,59475.0,59474.0,0.0028998]
[1724872479440,1.83686801,59475.0,59474.0,0.0028998]
[1724872479889,1.73617809,59475.0,59474.0,0.0028998]
[1724872480112,1.73699609,59475.0,59474.0,0.0028998]
[1724872480846,1.86285849,59475.0,59474.0,0.0008998]
[1724872481087,1.86785849,59475.0,59474.0,0.0008998]
[1724872481319,1.74199609,59475.0,59474.0,0.0008998]
[1724872481533,1.74799609,59475.0,59474.0,0.0018998]
[1724872481994,1.83771434,59475.0,59474.0,0.0008998]
[1724872482231,1.18741739,59475.0,59474.0,0.0008998]
[1724872482744,1.44816251,59475.0,59474.0,0.0008998]
[1724872482972,0.27120051,59475.0,59474.0,0.0008998]
[1724872483201,0.03170051,59475.0,59474.0,0.1690398]
[1724872483440,0.03170051,59475.0,59474.0,0.51671762]
[1724872484102,0.03170051,59475.0,59474.0,0.93229862]
[1724872484350,0.03170051,59475.0,59474.0,1.33887962]
[1724872484351,0.02670051,59475.0,59474.0,1.33887962]
[1724872484566,0.00985823,59475.0,59474.0,1.80516062]
[1724872484775,0.004818,59475.0,59474.0,1.80516062]
[1724872485005,0.000818,59482.0,59481.0,1.530084]
[1724872485200,0.000818,59482.0,59481.0,2.05461758]
[1724872485452,0.000818,59490.0,59489.0,0.84449]
[1724872485653,0.000818,59490.0,59489.0,1.619182]
[1724872485863,0.000818,59490.0,59489.0,1.62692626]
[1724872486085,0.000818,59490.0,59489.0,1.32803026]
[1724872486326,0.000818,59490.0,59489.0,0.59433826]
[1724872486755,0.000818,59490.0,59489.0,0.93053426]
[1724872486956,0.000818,59490.0,59489.0,1.26673026]
[1724872487170,0.000818,59490.0,59489.0,0.93053426]
[1724872487386,0.000818,59490.0,59489.0,1.26673026]
[1724872487586,0.000818,59490.0,59489.0,1.27073026]
[1724872487787,0.000818,59490.0,59489.0,1.28473026]
[1724872488687,0.000818,59490.0,59489.0,1.27073026]
[1724872488896,0.000818,59490.0,59489.0,1.28673026]
[1724872489123,0.000818,59490.0,59489.0,1.27273026]
[1724872489345,0.000818,59490.0,59489.0,1.33453026]
[1724872489560,0.000818,59490.0,59489.0,1.77072626]
[1724872489777,0.000818,59490.0,59489.0,2.09755984]
[1724872490629,0.000818,59490.0,59489.0,2.11155984]
[1724872491043,0.0082,59491.0,59490.0,1.269565]
[1724872491254,0.0082,59491.0,59490.0,1.417365]
[1724872491460,0.0082,59491.0,59490.0,1.76468154]
[1724872492492,0.0082,59491.0,59490.0,1.77868154]
[1724872493114,0.000823,59498.0,59497.0,1.526679]
[1724872493320,0.00819,59502.0,59500.0,0.184067]
[1724872493559,0.00819,59506.0,59505.0,1.334171]
[1724872493758,0.00819,59506.0,59505.0,2.40021658]
[1724872493973,0.00819,59506.0,59505.0,2.08711058]
[1724872494828,0.00819,59506.0,59505.0,2.13283802]
[1724872495255,0.00819,59506.0,59505.0,2.08711058]
[1724872495480,0.00819,59506.0,59505.0,2.42321658]
[1724872495682,0.00819,59506.0,59505.0,2.08711058]
[1724872497186,0.00819,59506.0,59505.0,2.09911058]
[1724872497411,1e-06,59509.0,59508.0,1.192311]
[1724872497621,0.0082,59515.0,59511.0,0.520108]
[1724872497840,0.0082,59515.0,59511.0,1.704824]
[1724872498067,0.0082,59515.0,59511.0,2.063896]
[1724872498494,0.00818,59535.0,59533.0,0.004]
[1724872498704,0.00818,59535.0,59534.0,1.511739]
[1724872498932,0.00818,59535.0,59534.0,1.175797]
[1724872499580,0.00818,59535.0,59534.0,2.043881]
[1724872499794,0.00818,59535.0,59534.0,2.12485587]
[1724872500067,0.00818,59535.0,59534.0,1.73779818]
[1724872500290,0.00818,59535.0,59534.0,1.730939]
[1724872500525,0.00818,59535.0,59534.0,1.360997]
[1724872500942,0.00818,59535.0,59534.0,0.857084]
[1724872501157,0.00818,59535.0,59534.0,1.025055]
[1724872501359,0.00818,59535.0,59534.0,1.360997]
[1724872502217,0.00818,59535.0,59534.0,2.084155]
[1724872502431,0.00818,59535.0,59534.0,1.75975118]
[1724872502681,0.00818,59535.0,59534.0,2.09569318]
[1724872503117,0.00818,59550.0,59549.0,0.503785]
[1724872503344,0.00818,59550.0,59549.0,1.39010774]
[1724872503549,0.00818,59550.0,59549.0,1.22217974]
[1724872503763,0.00818,59550.0,59549.0,1.72596474]
[1724872503997,0.00818,59550.0,59549.0,2.06182174]
[1724872505309,0.00818,59550.0,59549.0,1.72596474]
[1724872505516,0.08808,59550.0,59549.0,1.39010774]
[1724872505726,0.08808,59550.0,59549.0,1.72596474]
[1724872505935,0.08808,59550.0,59549.0,2.06182174]
[1724872506132,0.08808,59550.0,59549.0,1.72596474]
[1724872506347,0.08808,59550.0,59549.0,1.22217974]
[1724872506556,0.317106,59550.0,59549.0,1.22217974]
[1724872506769,0.317106,59550.0,59549.0,2.06182174]
[1724872506770,0.06928,59550.0,59549.0,2.06182174]
[1724872506978,0.06928,59550.0,59549.0,2.07582174]
[1724872507190,0.06928,59550.0,59549.0,1.72596474]
[1724872507608,0.06928,59550.0,59549.0,1.73996474]
[1724872508098,0.06928,59550.0,59549.0,1.22217974]
[1724872508330,0.06928,59550.0,59549.0,1.40310774]
[1724872508562,0.06928,59550.0,59549.0,1.55803674]
[1724872508789,0.06928,59550.0,59549.0,2.06182174]
[1724872508790,0.00818,59550.0,59549.0,2.06182174]
[1724872509930,0.0004,59559.0,59558.0,0.004]
[1724872510153,0.0004,59559.0,59558.0,1.3173072]
[1724872510382,0.0004,59579.0,59565.0,0.51365]
[1724872510604,0.0004,59579.0,59558.0,0.94955973]
[1724872510605,0.07018,59566.0,59558.0,0.1]
[1724872510818,0.07018,59566.0,59552.0,0.1754]
[1724872510819,0.167887,59564.0,59552.0,0.1754]
[1724872511048,0.078,59561.0,59553.0,0.335835]
[1724872511267,0.078,59561.0,59558.0,0.014]
[1724872511479,0.079,59561.0,59558.0,0.014]
[1724872511707,0.079,59561.0,59546.0,0.005]
[1724872511948,0.001,59554.0,59538.0,0.335914]
[1724872512198,0.078,59548.0,59540.0,0.335903]
[1724872512411,0.078,59548.0,59541.0,0.335899]
[1724872512412,0.139,59548.0,59541.0,0.335899]
[1724872512636,0.139,59548.0,59537.0,0.335923]
[1724872512842,0.139,59548.0,59534.0,0.005]
[1724872512843,0.061,59548.0,59542.0,0.335896]
[1724872513095,0.061,59548.0,59547.0,0.167934]
[1724872513752,0.061,59548.0,59547.0,0.839672]
[1724872513967,0.335771,59565.0,59546.0,0.0754]
[1724872513968,0.078,59559.0,59546.0,0.0754]
[1724872514224,0.079,59559.0,59550.0,0.335848]
[1724872514441,0.001,59556.0,59551.0,0.167922]
[1724872514637,0.001,59556.0,59552.0,0.335835]
[1724872514846,0.078,59559.0,59552.0,0.335835]
[1724872514847,0.001,59558.0,59552.0,0.335835]
[1724872515068,0.078,59559.0,59558.0,0.335807]
[1724872515281,0.078,59559.0,59547.0,0.014]
[1724872515282,0.001,59559.0,59547.0,0.014]
[1724872515503,0.168902,59559.0,59550.0,0.335847]
[1724872515755,0.168902,59559.0,59547.0,0.014]
[1724872515756,0.062,59553.0,59547.0,0.014]
[1724872515978,0.001,59551.0,59547.0,0.014]
[1724872516197,0.001,59551.0,59542.0,0.335896]
[1724872516198,0.167929,59549.0,59542.0,0.335896]
[1724872516408,0.079,59550.0,59537.0,0.4768]
[1724872516409,0.079,59550.0,59545.0,0.167937]
[1724872516625,0.246927,59550.0,59545.0,0.167937]
[1724872516859,0.167932,59548.0,59543.0,0.167944]
[1724872517087,0.167932,59548.0,59537.0,0.4768]
[1724872517088,0.001,59548.0,59537.0,0.4768]
[1724872517319,0.001,59548.0,59547.0,0.167934]
[1724872517756,0.001,59549.0,59548.0,0.167931]
[1724872517965,0.001,59549.0,59548.0,0.503794]
[1724872518192,0.335778,59564.0,59535.0,0.335931]
[1724872518193,0.0648,59560.0,59550.0,1.2443]
[1724872518437,0.0648,59560.0,59559.0,0.1679]
[1724872518625,0.0648,59560.0,59559.0,0.503701]
[1724872518837,0.167893,59562.0,59557.0,0.167905]
[1724872519037,0.167905,59558.0,59553.0,0.167917]
[1724872519252,0.167906,59558.0,59553.0,0.167917]
[1724872519519,0.04769863,59562.0,59551.0,1.2443]
[1724872519744,0.335759,59567.0,59538.0,0.0781]
[1724872519745,0.167908,59557.0,59538.0,0.0781]
[1724872519965,0.167903,59558.0,59557.0,0.013]
[1724872520173,0.1,59566.0,59546.0,0.335871]
[1724872520174,0.1,59566.0,59552.0,0.16792]
[1724872520379,0.04769863,59565.0,59544.0,0.335884]
[1724872520605,0.29383358,59559.0,59544.0,1.2443]
[1724872520789,0.50382,59545.0,59544.0,1.2443]
[1724872521008,0.50382,59545.0,59535.0,0.335934]
[1724872521009,0.167947,59543.0,59540.0,1.2443]
[1724872521222,0.335867,59548.0,59540.0,1.412253]
[1724872521223,0.167943,59544.0,59540.0,1.412253]
[1724872521420,0.335867,59548.0,59540.0,1.2443]
[1724872521627,0.167941,59545.0,59540.0,1.2443]
[1724872521831,0.167947,59543.0,59540.0,1.2443]
[1724872522033,0.0826,59544.0,59542.0,0.167948]
[1724872522250,0.228435,59547.0,59540.0,1.2443]
[1724872522251,0.0605,59547.0,59546.0,0.167937]
[1724872522455,0.0605,59547.0,59546.0,0.503811]
[1724872522651,0.0605,59547.0,59546.0,0.167937]
[1724872522868,0.0605,59547.0,59544.0,0.014]
[1724872523076,0.0605,59547.0,59540.0,1.580205]
[1724872523077,0.0605,59547.0,59543.0,0.167945]
[1724872523293,0.0605,59547.0,59546.0,0.012]
[1724872523715,0.16794,59545.0,59540.0,1.2443]
[1724872523924,0.16794,59545.0,59544.0,0.014]
[1724872524136,0.167944,59544.0,59540.0,1.2443]
[1724872524345,0.0811,59545.0,59540.0,1.2443]
[1724872524565,0.0811,59545.0,59541.0,0.16795]
[1724872524776,0.24904,59545.0,59540.0,1.2443]
[1724872524990,0.0811,59545.0,59540.0,1.2443]
[1724872525188,0.0605,59547.0,59546.0,0.167937]
[1724872525600,0.0605,59547.0,59546.0,0.181937]
[1724872525845,0.0605,59547.0,59546.0,0.167937]
[1724872526059,0.061317,59547.0,59546.0,0.167937]
[1724872526548,0.061317,59547.0,59540.0,1.2583]
[1724872526748,0.061317,59547.0,59541.0,1.2443]
[1724872526898,0.061317,59547.0,59546.0,0.503811]
[1724872527514,0.061317,59547.0,59546.0,0.181937]
[1724872527846,0.229251,59547.0,59546.0,0.014]
[1724872528295,0.56512,59547.0,59546.0,0.014]
[1724872528502,0.977989,59547.0,59546.0,0.014]
[1724872528712,1.313858,59547.0,59546.0,0.014]
[1724872528935,1.36418756,59547.0,59546.0,0.014]
[1724872529135,1.36418756,59547.0,59542.0,1.2443]
[1724872529136,1.175618,59543.0,59542.0,1.2443]
[1724872529335,1.175618,59543.0,59534.0,0.0008987]
[1724872529336,0.83984,59535.0,59534.0,0.0008987]
[1724872529544,0.98324,59535.0,59534.0,0.0008987]
[1724872529777,1.61300958,59535.0,59534.0,0.0008987]
[1724872529970,1.61300958,59535.0,59516.0,1.2443]
[1724872529971,0.504057,59517.0,59516.0,1.2443]
[1724872530174,0.504057,59517.0,59509.0,0.50540786]
[1724872530175,0.1434,59517.0,59510.0,1.2443]
[1724872530390,0.336045,59516.0,59510.0,1.2443]
[1724872530571,0.168036,59511.0,59510.0,1.2443]
[1724872530825,0.168031,59513.0,59510.0,1.2443]
[1724872531017,0.1434,59517.0,59510.0,1.2443]
[1724872531018,0.336054,59515.0,59510.0,1.2443]
[1724872531220,0.1434,59517.0,59510.0,2.084492]
[1724872531221,0.01759779,59511.0,59510.0,2.084492]
[1724872531577,1e-08,59511.0,59510.0,2.420569]
[1724872531894,1e-08,59511.0,59510.0,2.084492]
[1724872532542,1e-08,59511.0,59510.0,1.412338]
[1724872532963,1e-08,59511.0,59510.0,1.748415]
[1724872533181,1e-08,59511.0,59510.0,2.084492]
[1724872533611,0.00100001,59511.0,59510.0,2.097492]
[1724872533822,0.00100001,59511.0,59510.0,2.084492]
[1724872534253,0.33707201,59511.0,59510.0,1.2443]
[1724872534473,0.33707201,59511.0,59500.0,0.082]
[1724872534474,0.14560001,59511.0,59502.0,1.2443]
[1724872534671,0.14560001,59511.0,59500.0,0.336133]
[1724872534672,0.14560001,59511.0,59510.0,0.014]
[1724872534673,0.31463601,59511.0,59510.0,0.014]
[1724872534881,0.65070801,59511.0,59510.0,0.014]
[1724872535109,0.14660001,59511.0,59510.0,0.014]
[1724872535553,0.14660001,59511.0,59510.0,0.52681121]
[1724872535554,0.00200001,59511.0,59510.0,0.52681121]
[1724872535762,0.00200001,59511.0,59510.0,0.518115]
[1724872535986,0.00200001,59511.0,59510.0,0.52681121]
[1724872536182,0.00200001,59511.0,59510.0,0.86288821]
[1724872536447,1e-08,59511.0,59510.0,0.51281121]
[1724872536688,0.58440801,59511.0,59510.0,0.00869621]
[1724872537100,0.58440801,59511.0,59510.0,0.014]
[1724872537101,0.58540801,59511.0,59510.0,0.014]
[1724872537301,0.16804,59510.0,59505.0,0.168053]
[1724872537491,0.58440801,59511.0,59510.0,0.0008987]
[1724872537711,0.92148001,59511.0,59510.0,0.0148987]
[1724872537917,0.08130001,59511.0,59510.0,0.0008987]
[1724872538320,0.08130001,59511.0,59510.0,0.86383853]
[1724872538321,0.00200001,59511.0,59510.0,0.86383853]
[1724872538527,0.00200001,59511.0,59510.0,1.1911677]
[1724872538682,0.00200001,59511.0,59510.0,1.19991105]
[1724872539284,0.00200001,59511.0,59510.0,0.19168005]
[1724872539479,0.00200001,59511.0,59510.0,0.52775705]
[1724872539689,0.00200001,59511.0,59510.0,0.02364205]
[1724872539939,1e-08,59511.0,59510.0,0.17768005]
[1724872540460,1e-08,59511.0,59510.0,0.02264205]
[1724872540593,1e-08,59511.0,59510.0,0.00964205]
[1724872540768,1e-08,59511.0,59510.0,0.19068005]
[1724872541202,1e-08,59511.0,59510.0,0.17768005]
[1724872541399,1e-08,59511.0,59510.0,0.19068005]
[1724872541624,1e-08,59511.0,59510.0,1.42198005]
[1724872541851,1e-08,59511.0,59510.0,2.50761105]
[1724872542110,1e-08,59511.0,59510.0,2.17153405]
[1724872542551,1e-08,59511.0,59510.0,1.25394205]
[1724872543449,0.16803601,59511.0,59510.0,1.26794205]
[1724872543574,0.16803601,59511.0,59510.0,1.25394205]
[1724872543782,0.89327553,59511.0,59510.0,0.00964205]
[1724872544008,0.89327553,59511.0,59510.0,0.02264205]
[1724872544009,0.95787553,59511.0,59510.0,0.02264205]
[1724872544213,0.95787553,59511.0,59510.0,0.0008987]
[1724872544596,0.95787553,59511.0,59510.0,0.0148987]
[1724872544904,0.95787553,59511.0,59510.0,0.0008987]
[1724872545430,0.90478001,59511.0,59510.0,0.0008987]
[1724872546381,0.90478001,59511.0,59510.0,0.0138987]
[1724872547470,1e-08,59511.0,59510.0,0.1819367]
[1724872547931,1e-08,59511.0,59510.0,0.86283778]
[1724872548153,1e-08,59511.0,59510.0,1.61149178]
[1724872548369,1e-08,59511.0,59510.0,1.70549178]
[1724872548581,1e-08,59511.0,59510.0,2.04156878]
[1724872548826,1e-08,59511.0,59510.0,2.14156878]
[1724872549037,0.000818,59515.0,59514.0,1.517247]
[1724872549265,0.01759476,59535.0,59534.0,0.412742]
[1724872549477,0.01759476,59535.0,59534.0,1.313697]
[1724872549903,0.0604,59551.0,59546.0,0.167937]
[1724872550160,0.0787,59558.0,59546.0,0.503811]
[1724872550363,0.167914,59554.0,59546.0,0.51238154]
[1724872550576,0.01759158,59551.0,59546.0,0.51238154]
[1724872551464,0.01759158,59551.0,59546.0,1.32772954]
[1724872551679,0.01759158,59551.0,59546.0,1.35572954]
[1724872551926,0.01759158,59551.0,59546.0,1.70160354]
[1724872552147,0.01759158,59551.0,59546.0,1.46072954]
[1724872552360,0.01759158,59551.0,59546.0,1.46572954]
[1724872552580,0.01759158,59551.0,59546.0,1.47972954]
[1724872552792,0.01759158,59551.0,59546.0,1.46972954]
[1724872553018,0.01759158,59551.0,59546.0,1.44672954]
[1724872553236,0.01759158,59551.0,59546.0,1.43272954]
[1724872553673,0.01759158,59551.0,59546.0,1.42772954]
[1724872554334,0.01759158,59551.0,59546.0,1.44172954]
[1724872555215,0.27385291,59566.0,59554.0,0.335828]
[1724872555493,0.167892,59562.0,59550.0,0.335851]
[1724872555706,0.05006931,59581.0,59550.0,0.335851]
[1724872555707,0.00817,59607.0,59594.0,0.340604]
[1724872555925,0.00817,59607.0,59594.0,0.83901]
[1724872556195,0.00817,59607.0,59594.0,1.18282462]
[1724872556618,0.00817,59607.0,59594.0,0.51161662]
[1724872556871,0.05188455,59607.0,59594.0,0.00821062]
[1724872557091,0.05188455,59607.0,59594.0,0.17601262]
[1724872557301,0.167772,59605.0,59594.0,0.17601262]
[1724872557480,0.167775,59604.0,59594.0,0.18995624]
[1724872557767,0.167777,59603.0,59594.0,0.17595624]
[1724872557982,0.167771,59605.0,59594.0,0.17595624]
[1724872558162,0.167774,59604.0,59594.0,0.18995624]
[1724872558329,0.167774,59604.0,59594.0,0.17595624]
[1724872558542,0.00817,59607.0,59594.0,0.51156024]
[1724872558753,0.167769,59606.0,59594.0,0.51156024]
[1724872559495,0.167771,59605.0,59594.0,0.51156024]
[1724872559703,0.167771,59605.0,59594.0,0.52556024]
[1724872560123,0.00817,59607.0,59594.0,1.19676824]
[1724872560320,0.00817,59607.0,59594.0,0.86116424]
[1724872560527,0.00817,59607.0,59594.0,0.52556024]
[1724872560730,0.175938,59607.0,59594.0,0.52556024]
[1724872561147,0.00817,59607.0,59594.0,0.86116424]
[1724872561853,0.00817,59607.0,59594.0,0.18995624]
[1724872561854,0.167785,59600.0,59594.0,0.18995624]
[1724872562053,0.00817,59607.0,59594.0,0.52556024]
[1724872562255,0.167772,59605.0,59594.0,0.52556024]
[1724872562426,0.00817,59607.0,59594.0,1.19676824]
[1724872562638,0.00817,59607.0,59594.0,0.86116424]
[1724872562807,0.00817,59607.0,59594.0,1.53237224]
[1724872562992,0.00817,59607.0,59594.0,1.27776824]
[1724872564511,0.167774,59604.0,59594.0,0.86116424]
[1724872564681,0.00817,59607.0,59594.0,0.52556024]
[1724872564682,0.0818,59600.0,59594.0,0.52556024]
[1724872564905,0.0609,59596.0,59594.0,0.52556024]
[1724872565528,0.0609,59596.0,59594.0,0.18995624]
[1724872565730,0.0609,59596.0,59594.0,0.02215424]
[1724872565908,0.847175,59595.0,59594.0,0.02215424]
[1724872566122,0.928975,59595.0,59594.0,0.02215424]
[1724872566341,0.08998,59595.0,59594.0,0.181802]
[1724872566553,0.08998,59595.0,59594.0,0.167802]
[1724872566775,0.08998,59595.0,59594.0,0.18982305]
[1724872567232,0.08998,59595.0,59594.0,0.00802105]
[1724872567233,0.257779,59595.0,59594.0,0.00802105]
[1724872567501,0.257779,59595.0,59594.0,0.02002105]
[1724872567739,0.257779,59595.0,59594.0,0.012]
[1724872568007,0.257779,59595.0,59587.0,0.335639]
[1724872568008,0.1654463,59595.0,59567.0,0.0758]
[1724872568248,0.1654463,59595.0,59561.0,0.005]
[1724872568249,0.0774,59593.0,59561.0,0.005]
[1724872568467,0.0774,59593.0,59579.0,0.167842]
[1724872568468,0.167831,59584.0,59579.0,0.167842]
[1724872568680,0.335643,59587.0,59579.0,0.167842]
[1724872568681,0.335651,59586.0,59579.0,0.167842]
[1724872568894,0.335655,59585.0,59580.0,0.00810916]
[1724872569130,0.1835,59594.0,59580.0,0.00810916]
[1724872569131,0.580915,59581.0,59580.0,0.00810916]
[1724872569389,0.916592,59581.0,59580.0,0.00810916]
[1724872569587,0.1379,59581.0,59571.0,0.50540786]
[1724872569820,0.305739,59581.0,59576.0,0.167851]
[1724872570212,0.167847,59578.0,59577.0,0.00816824]
[1724872570654,0.1379,59581.0,59554.0,0.105]
[1724872570858,0.1379,59581.0,59577.0,0.00816824]
[1724872570859,0.167847,59578.0,59577.0,0.00816824]
[1724872571059,0.167847,59578.0,59553.0,0.01]
[1724872571060,0.335685,59580.0,59579.0,0.014]
[1724872571239,0.167841,59580.0,59579.0,0.014]
[1724872571677,0.1379,59581.0,59579.0,0.014]
[1724872571895,0.167841,59580.0,59579.0,0.014]
[1724872572311,0.138718,59581.0,59579.0,0.014]
[1724872572528,0.138718,59581.0,59580.0,0.167841]
[1724872572963,0.138718,59581.0,59580.0,0.17603405]
[1724872573390,0.061318,59581.0,59580.0,0.17603405]
[1724872573607,0.000818,59581.0,59580.0,0.51171705]
[1724872574058,0.504333,59581.0,59580.0,0.00819305]
[1724872574275,0.84001,59581.0,59580.0,0.00819305]
[1724872574517,0.84001,59581.0,59560.0,0.0758]
[1724872574518,0.167871,59570.0,59564.0,0.167885]
[1724872574747,0.0622,59578.0,59556.0,0.50540786]
[1724872574972,0.0622,59578.0,59541.0,0.061]
[1724872574973,0.0622,59561.0,59541.0,0.061]
[1724872575187,0.0622,59561.0,59537.0,0.335923]
[1724872575188,0.0772,59560.0,59540.0,0.58120786]
[1724872575658,0.0772,59560.0,59559.0,0.503701]
[1724872576090,0.0772,59560.0,59557.0,0.167904]
[1724872576291,0.0772,59560.0,59554.0,0.335826]
[1724872576493,0.1416,59567.0,59544.0,0.002]
[1724872576701,0.1416,59567.0,59542.0,0.340891]
[1724872576702,0.167893,59562.0,59557.0,0.167905]
[1724872576967,0.167895,59561.0,59557.0,0.167905]
[1724872577197,0.167895,59561.0,59543.0,0.102]
[1724872577198,0.167881,59566.0,59544.0,0.335883]
[1724872577397,0.167901,59559.0,59554.0,0.167914]
[1724872577609,0.001,59560.0,59554.0,0.012]
[1724872577866,0.167918,59553.0,59540.0,0.0758]
[1724872578086,0.0811,59554.0,59549.0,0.167926]
[1724872578087,0.249015,59554.0,59549.0,0.167926]
[1724872578306,0.249015,59554.0,59545.0,0.167938]
[1724872578307,0.167923,59551.0,59545.0,0.167938]
[1724872578531,0.335864,59548.0,59541.0,0.167949]
[1724872578739,0.0636,59549.0,59545.0,0.167939]
[1724872578957,0.0636,59549.0,59535.0,0.1428]
[1724872578958,0.0636,59549.0,59536.0,0.335929]
[1724872579152,0.0636,59549.0,59543.0,0.335888]
[1724872579405,0.0811,59554.0,59553.0,0.167917]
[1724872579614,0.0811,59554.0,59535.0,0.0818]
[1724872579823,0.335856,59550.0,59541.0,0.167951]
[1724872580027,0.335842,59552.0,59540.0,0.335906]
[1724872580234,0.0811,59554.0,59546.0,0.335873]
[1724872580440,0.001,59549.0,59547.0,0.167933]
[1724872580658,0.001,59549.0,59542.0,0.335894]
[1724872580885,0.16793,59549.0,59543.0,0.167944]
[1724872581487,0.336853,59550.0,59543.0,0.33589]
[1724872581488,0.001,59550.0,59543.0,0.33589]
[1724872581693,0.001,59550.0,59548.0,0.167931]
[1724872582050,0.168927,59550.0,59546.0,0.167935]
[1724872582467,0.167927,59550.0,59546.0,0.167935]
[1724872582871,0.001,59549.0,59547.0,0.014]
[1724872582990,0.167923,59551.0,59547.0,0.167932]
[1724872583202,0.0811,59554.0,59550.0,0.335851]
[1724872583404,0.0811,59554.0,59549.0,0.503783]
[1724872583405,0.001,59550.0,59549.0,0.503783]
[1724872584143,0.001,59550.0,59549.0,0.502783]
[1724872584345,0.0636,59555.0,59543.0,0.0008987]
[1724872584518,0.0636,59555.0,59553.0,0.167916]
[1724872584941,0.0636,59555.0,59554.0,0.01128702]
[1724872585324,0.231512,59555.0,59550.0,0.167925]
[1724872585525,0.0636,59555.0,59550.0,0.33585]
[1724872585745,0.0636,59555.0,59554.0,0.167914]
[1724872586164,0.0636,59555.0,59554.0,0.85085406]
[1724872586358,0.435765,59566.0,59561.0,0.167895]
[1724872586359,0.0642,59562.0,59561.0,0.167895]
[1724872586683,0.0642,59562.0,59557.0,0.33581]
[1724872586854,0.0642,59562.0,59561.0,0.01125704]
[1724872587052,0.0642,59562.0,59559.0,0.1679]
[1724872587254,0.0642,59562.0,59561.0,0.01125534]
[1724872587482,0.0642,59562.0,59561.0,0.17905034]
[1724872587804,0.0642,59562.0,59561.0,0.01115534]
[1724872588212,0.0652,59562.0,59561.0,0.01115534]
[1724872588361,0.0652,59562.0,59559.0,0.178899]
[1724872588557,0.0652,59562.0,59561.0,0.01115414]
[1724872588558,0.233092,59562.0,59561.0,0.01115414]
[1724872588793,0.233092,59562.0,59551.0,0.335844]
[1724872588794,0.167895,59561.0,59560.0,0.01115772]
[1724872589191,0.167895,59561.0,59557.0,0.167904]
[1724872589393,0.167895,59561.0,59560.0,0.01114903]
[1724872589594,0.167895,59561.0,59557.0,0.167904]
[1724872589797,0.0652,59562.0,59554.0,0.335829]
[1724872589798,0.0652,59562.0,59561.0,0.515685]
[1724872589995,0.0652,59562.0,59561.0,0.503685]
[1724872590200,0.001,59562.0,59561.0,1.18639092]
[1724872590410,0.001,59562.0,59561.0,0.85060092]
[1724872590610,0.98336,59562.0,59561.0,0.01112592]
[1724872590818,1.319144,59562.0,59561.0,0.01112592]
[1724872590988,1.319144,59562.0,59547.0,0.335865]
[1724872590989,0.335812,59558.0,59548.0,0.335859]
[1724872591168,0.335812,59558.0,59545.0,0.50540786]
[1724872591169,0.167912,59555.0,59545.0,0.50540786]
[1724872591384,0.335818,59556.0,59549.0,0.01117435]
[1724872591575,0.167909,59556.0,59552.0,0.167919]
[1724872591827,0.1429,59562.0,59550.0,0.01117078]
[1724872592015,0.1429,59562.0,59546.0,0.167936]
[1724872592016,0.023,59561.0,59546.0,0.167936]
[1724872592365,0.167928,59549.0,59548.0,0.014]
[1724872592566,0.503785,59549.0,59548.0,0.014]
[1724872592683,0.0788,59550.0,59543.0,0.0008987]
[1724872593044,0.246727,59550.0,59546.0,0.167935]
[1724872593409,0.167929,59549.0,59546.0,0.013]
[1724872593613,0.0788,59550.0,59546.0,0.335872]
[1724872593812,0.0788,59550.0,59543.0,0.0008987]
[1724872593813,0.167912,59555.0,59551.0,0.167921]
[1724872594237,0.16771002,59555.0,59551.0,0.167921]
[1724872595247,0.16771002,59555.0,59552.0,0.00938234]
[1724872595967,0.335779,59563.0,59552.0,0.00938234]
[1724872595968,0.0788,59561.0,59552.0,0.00938234]
[1724872596183,0.061,59570.0,59569.0,0.167872]
[1724872596384,0.061,59570.0,59565.0,0.167881]
[1724872596583,0.167881,59566.0,59559.0,0.335799]
[1724872596822,0.061,59570.0,59565.0,0.335765]
[1724872597042,0.061,59570.0,59568.0,0.167874]
[1724872597203,0.061,59570.0,59565.0,0.167881]
[1724872597582,0.167873,59569.0,59565.0,0.167881]